{"text_format":"1","workbook":"xlsx","n_sheets":2,"sheets":["KOSZTY (2)","Arkusz1"],"not_rendered":{"charts":0,"images":0,"macros":0,"external_links":0,"defined_names":0,"comments":0,"pivot_tables":0},"unopened":[],"bounds":{"document_bytes":16777216,"sheet_cells":100000,"rows_first":2000,"rows_last":500,"rows_between":2000,"halvings":0,"cell_chars":16384,"cell_head_chars":4096},"cells_cut":0,"cells_raw":0,"read":"whole","date_system":"1900"}

{"sheet":"KOSZTY (2)","index":0,"n_rows":200,"n_cols":9,"rows_kept":200,"cut":false,"hidden":false,"merged":[[2,8,3,8],[2,7,3,7],[2,3,3,3],[1,2,1,6],[2,1,3,2],[2,5,3,5],[2,6,3,6]]}
[]
[]
[null,"PRODUKT (PRODUCTS)",null,"ILOŚĆ QUANTITY",null,"ILOŚĆ QUANTITY","JEDN. UNIT","ILOŚĆ  QUANTITY","JEDN.          UNIT"]
[]
[null,"KEBAB","KURCZAK",2,"x",10,"kg",{"$f":"D5*F5","v":20},{"$f":"G5","v":"kg"}]
[null,null,"WOŁOWINA",1,"x",5,"kg",{"$f":"D6*F6","v":5},{"$f":"G6","v":"kg"}]
[null,"MIĘSO","BARANINA",null,"x",1,"kg",0,"kg"]
[null,null,"MIESZANY",null,"x",1,"kg",0,"kg"]
[null,null,"FALAFEL",null,"x",1,"kg",0,"kg"]
[null,"SOS","ŁAGODNY",null,"x",1,"L",0,"L"]
[null,null,"OSTRY",null,"x",1,"L",0,"L"]
[null,null,"MIESZANY",null,"x",1,"L",0,"L"]
[null,null,"SOS POMIDOROWY",null,"x",1,"L",0,"L"]
[null,null,"WARZYWA",null,"x",1,"kg",0,"kg"]
[null,null,"SURÓWKA",null,"x",1,"kg",0,"kg"]
[null,null,"SURÓWKA Z MARCHWI I JABŁKA",null,"x",1,"kg",0,"kg"]
[null,null,"NUGETTSY",null,"x",1,"kg",0,"kg"]
[null,null,"KRĄŻKI CEBULOWE",null,"x",1,"kg",0,"kg"]
[null,null,"MAKARON",null,"x",1,"kg",0,"kg"]
[null,null,"FRYTKI",null,"x",1,"kg",0,"kg"]
[null,null,"RYŻ",null,"x",1,"kg",0,"kg"]
[null,null,"ZIEMNIAKI PANIEROWANE",null,"x",1,"kg",0,"kg"]
[null,"SAŁATKI","GRECKA",null,"x",1,"kg",0,"kg"]
[null,null,"Z KURCZAKIEM",null,"x",1,"kg",0,"kg"]
[null,null,"Z TUŃCZYKIEM",null,"x",1,"kg",0,"kg"]
[null,null,"HUMUS",null,"x",1,"kg",0,"kg"]
[null,null,"BAKLAWA",null,"x",1,"kg",0,"kg"]
[null,null,"FOLIA spożywcza",null,"x",1,"szt.",0,"szt."]
[null,null,"CZOSNEK GRANULOWANY",null,"x",1,"szt.",0,"szt."]
[null,null,"KETCHUP ŁAGODNY 5 kg",null,"x",1,"kg",0,"kg"]
[null,null,"JOGURT NATURALNY 10% 10L",null,"x",1,"l",0,"l"]
[null,null,"BAZA MAJONEZOWA 10 kg",null,"x",1,"kg",0,"kg"]
[null,null,"KAPUSTA PEKINSKA",null,"x",1,"kg",0,"kg"]
[null,null,"KAPUSTA BIALA",null,"x",1,"kg",0,"kg"]
[null,null,"OGOREK",null,"x",1,"kg",0,"kg"]
[null,null,"CEBULA CZERWONA",null,"x",1,"kg",0,"kg"]
[null,null,"CEBULA BIALA",null,"x",1,"kg",0,"kg"]
[null,null,"SALATA LADOWA",null,"x",1,"szt.",0,"szt."]
[null,null,"KAPUSTA PEKINSKA",null,"x",1,"kg",0,"kg"]
[null,null,"POMIDOR",null,"x",1,"kg",0,"kg"]
[null,null,"PAPRYKA MIX",null,"x",1,"kg",0,"kg"]
[null,null,"MARCHEW",null,"x",1,"kg",0,"kg"]
[null,null,"ZIEMNIAKI",null,"x",1,"kg",0,"kg"]
[null,null,"CEBULA CZERWONA",null,"x",1,"kg",0,"kg"]
[null,null,"SALATA LADOWA",null,"x",1,"szt.",0,"szt."]
[null,null,"KAPUSTA BIALA",null,"x",1,"kg",0,"kg"]
[null,null,"KAPUSTA BIALA",null,"x",1,"kg",0,"kg"]
[null,null,"KAPUSTA PEKINSKA",null,"x",1,"kg",0,"kg"]
[null,null,"OGOREK",null,"x",1,"kg",0,"kg"]
[null,null,"KAPUSTA CZERWONA",null,"x",1,"kg",0,"kg"]
[null,null,"JAJA",null,"x",1,"szt.",0,"szt."]
[null,null,"CZOSNEK OB",null,"x",1,"kg",0,"kg"]
[null,null,"FOLIA spożywcza",null,"x",2,"szt.",0,"szt."]
[null,null,"OPAKOWANIE ",null,"x",100,"szt.",0,"szt."]
[null,null,"BOX",null,"x",100,"szt.",0,"szt."]
[null,null,null,null,"x",null,null,0,0]
[null,null,null,null,"x",null,null,0,0]
[null,null,null,null,"x",null,null,0,0]
[null,null,null,null,"x",null,null,0,0]
[null,null,null,null,"x",null,null,0,0]
[null,null,null,null,"x",null,null,0,0]
[null,null,null,null,"x",null,null,0,0]
[null,null,null,null,"x",null,null,0,0]
[null,null,null,null,"x",null,null,0,0]
[null,null,null,null,"x",null,null,0,0]
[null,null,null,null,"x",null,null,0,0]
[null,null,null,null,"x",null,null,0,0]
[null,null,null,null,"x",null,null,0,0]
[null,null,null,null,"x",null,null,0,0]
[null,null,null,null,"x",null,null,{"$f":"D70*F70","v":0},{"$f":"G70","v":0}]
[null,null,null,null,"x",null,null,0,0]
[null,null,null,null,"x",null,null,0,0]
[null,null,null,null,"x",null,null,0,0]
[null,null,null,null,"x",null,null,0,0]
[null,null,null,null,"x",null,null,0,0]
[null,null,null,null,"x",null,null,0,0]
[null,null,null,null,"x",null,null,0,0]
[null,null,null,null,"x",null,null,0,0]
[null,null,null,null,"x",null,null,0,0]
[null,null,null,null,"x",null,null,0,0]
[null,null,null,null,"x",null,null,0,0]
[null,null,null,null,"x",null,null,0,0]
[null,null,null,null,"x",null,null,0,0]
[null,null,null,null,"x",null,null,0,0]
[null,null,null,null,"x",null,null,0,0]
[null,null,null,null,"x",null,null,0,0]
[null,null,null,null,"x",null,null,0,0]
[null,null,null,null,"x",null,null,0,0]
[null,null,null,null,"x",null,null,0,0]
[null,null,null,null,"x",null,null,0,0]
[null,null,null,null,"x",null,null,0,0]
[null,null,null,null,"x",null,null,0,0]
[null,null,null,null,"x",null,null,0,0]
[null,null,null,null,"x",null,null,0,0]
[null,null,null,null,"x",null,null,0,0]
[null,null,null,null,"x",null,null,0,0]
[null,null,null,null,"x",null,null,0,0]
[null,null,null,null,"x",null,null,0,0]
[null,null,null,null,"x",null,null,0,0]
[null,null,null,null,"x",null,null,0,0]
[null,null,null,null,"x",null,null,0,0]
[null,null,null,null,"x",null,null,0,0]
[null,null,null,null,"x",null,null,0,0]
[null,null,null,null,"x",null,null,0,0]
[null,null,null,null,"x",null,null,0,0]
[null,null,null,null,"x",null,null,0,0]
[null,null,null,null,"x",null,null,0,0]
[null,null,null,null,"x",null,null,0,0]
[null,null,null,null,"x",null,null,0,0]
[null,null,null,null,"x",null,null,0,0]
[null,null,null,null,"x",null,null,0,0]
[null,null,null,null,"x",null,null,0,0]
[null,null,null,null,"x",null,null,0,0]
[null,null,null,null,"x",null,null,0,0]
[null,null,null,null,"x",null,null,0,0]
[null,null,null,null,"x",null,null,0,0]
[null,null,null,null,"x",null,null,0,0]
[null,null,null,null,"x",null,null,0,0]
[null,null,null,null,"x",null,null,0,0]
[null,null,null,null,"x",null,null,0,0]
[null,null,null,null,"x",null,null,0,0]
[null,null,null,null,"x",null,null,0,0]
[null,null,null,null,"x",null,null,0,0]
[null,null,null,null,"x",null,null,0,0]
[null,null,null,null,"x",null,null,0,0]
[null,null,null,null,"x",null,null,0,0]
[null,null,null,null,"x",null,null,0,0]
[null,null,null,null,"x",null,null,0,0]
[null,null,null,null,"x",null,null,0,0]
[null,null,null,null,"x",null,null,0,0]
[null,null,null,null,"x",null,null,0,0]
[null,null,null,null,"x",null,null,0,0]
[null,null,null,null,"x",null,null,0,0]
[null,null,null,null,"x",null,null,{"$f":"D134*F134","v":0},{"$f":"G134","v":0}]
[null,null,null,null,"x",null,null,0,0]
[null,null,null,null,"x",null,null,0,0]
[null,null,null,null,"x",null,null,0,0]
[null,null,null,null,"x",null,null,0,0]
[null,null,null,null,"x",null,null,0,0]
[null,null,null,null,"x",null,null,0,0]
[null,null,null,null,"x",null,null,0,0]
[null,null,null,null,"x",null,null,0,0]
[null,null,null,null,"x",null,null,0,0]
[null,null,null,null,"x",null,null,0,0]
[null,null,null,null,"x",null,null,0,0]
[null,null,null,null,"x",null,null,0,0]
[null,null,null,null,"x",null,null,0,0]
[null,null,null,null,"x",null,null,0,0]
[null,null,null,null,"x",null,null,0,0]
[null,null,null,null,"x",null,null,0,0]
[null,null,null,null,"x",null,null,0,0]
[null,null,null,null,"x",null,null,0,0]
[null,null,null,null,"x",null,null,0,0]
[null,null,null,null,"x",null,null,0,0]
[null,null,null,null,"x",null,null,0,0]
[null,null,null,null,"x",null,null,0,0]
[null,null,null,null,"x",null,null,0,0]
[null,null,null,null,"x",null,null,0,0]
[null,null,null,null,"x",null,null,0,0]
[null,null,null,null,"x",null,null,0,0]
[null,null,null,null,"x",null,null,0,0]
[null,null,null,null,"x",null,null,0,0]
[null,null,null,null,"x",null,null,0,0]
[null,null,null,null,"x",null,null,0,0]
[null,null,null,null,"x",null,null,0,0]
[null,null,null,null,"x",null,null,0,0]
[null,null,null,null,"x",null,null,0,0]
[null,null,null,null,"x",null,null,0,0]
[null,null,null,null,"x",null,null,0,0]
[null,null,null,null,"x",null,null,0,0]
[null,null,null,null,"x",null,null,0,0]
[null,null,null,null,"x",null,null,0,0]
[null,null,null,null,"x",null,null,0,0]
[null,null,null,null,"x",null,null,0,0]
[null,null,null,null,"x",null,null,0,0]
[null,null,null,null,"x",null,null,0,0]
[null,null,null,null,"x",null,null,0,0]
[null,null,null,null,"x",null,null,0,0]
[null,null,null,null,"x",null,null,0,0]
[null,null,null,null,"x",null,null,0,0]
[null,null,null,null,"x",null,null,0,0]
[null,null,null,null,"x",null,null,0,0]
[null,null,null,null,"x",null,null,0,0]
[null,null,null,null,"x",null,null,0,0]
[null,null,null,null,"x",null,null,0,0]
[null,null,null,null,"x",null,null,0,0]
[null,null,null,null,"x",null,null,0,0]
[null,null,null,null,"x",null,null,0,0]
[null,null,null,null,"x",null,null,0,0]
[null,null,null,null,"x",null,null,0,0]
[null,null,null,null,"x",null,null,0,0]
[null,null,null,null,"x",null,null,0,0]
[null,null,null,null,"x",null,null,0,0]
[null,null,null,null,"x",null,null,0,0]
[null,null,null,null,"x",null,null,0,0]
[null,null,null,null,"x",null,null,0,0]
[null,null,null,null,"x",null,null,0,0]
[null,null,null,null,"x",null,null,{"$f":"D198*F198","v":0},{"$f":"G198","v":0}]
[null,null,null,null,"x",null,null,0,0]
[null,null,null,null,"x",null,null,0,0]

{"sheet":"Arkusz1","index":1,"n_rows":0,"n_cols":0,"rows_kept":0,"cut":false,"hidden":false,"merged":[]}